[Event "SS Manhem Chess Week 2022: Goteborg Open"]
[Site "Schackcentrum, Vegagatan 20, Gothenburg, Sweden"]
[Date "2022.08.13"]
[Round "5.19"]
[White "Ghaderi, Jamal"]
[Black "Degerfeldt, Sven"]
[Result "0-1"]
[TimeControl "15 minutes + 5 seconds per move from move one (Round 1 - 4) / 90 minutes + 30 seconds per move from move one (Round 5 - 8)"]
[WhiteFideId "1744178"]
[BlackFideId "1717430"]
[WhiteElo "1411"]
[BlackElo "1842"]

1. c4 {[%clk 01:30:57]} {[%emt 00:00:02]} c5 {[%clk 01:28:15]} {[%emt
00:02:45]} 2. g3 {[%clk 01:31:18]} {[%emt 00:00:09]} Nc6 {[%clk 01:28:36]}
{[%emt 00:00:09]} 3. Nc3 {[%clk 01:31:39]} {[%emt 00:00:09]} g6 {[%clk
01:28:52]} {[%emt 00:00:14]} 4. Bg2 {[%clk 01:31:50]} {[%emt 00:00:19]} Bg7
{[%clk 01:29:13]} {[%emt 00:00:08]} 5. Nf3 {[%clk 01:31:53]} {[%emt 00:00:28]}
d6 {[%clk 01:27:17]} {[%emt 00:02:26]} 6. d3 {[%clk 01:30:01]} {[%emt
00:02:22]} e5 {[%clk 01:27:06]} {[%emt 00:00:40]} 7. O-O {[%clk 01:29:08]}
{[%emt 00:01:24]} Nge7 {[%clk 01:27:12]} {[%emt 00:00:24]} 8. Bg5 {[%clk
01:27:32]} {[%emt 00:02:06]} f6 {[%clk 01:27:00]} {[%emt 00:00:41]} 9. Bc1
{[%clk 01:27:06]} {[%emt 00:00:56]} O-O {[%clk 01:27:11]} {[%emt 00:00:19]} 10.
b3 {[%clk 01:25:31]} {[%emt 00:02:06]} Be6 {[%clk 01:25:17]} {[%emt 00:02:23]}
11. Nd2 {[%clk 01:23:49]} {[%emt 00:02:12]} d5 {[%clk 01:21:44]} {[%emt
00:04:03]} 12. cxd5 {[%clk 01:19:45]} {[%emt 00:04:35]} Nxd5 {[%clk 01:22:05]}
{[%emt 00:00:09]} 13. Bb2 {[%clk 01:18:57]} {[%emt 00:01:19]} b6 {[%clk
01:19:55]} {[%emt 00:02:40]} 14. Nde4 {[%clk 01:17:44]} {[%emt 00:01:43]} Qd7
{[%clk 01:19:04]} {[%emt 00:01:21]} 15. Qc2 {[%clk 01:15:57]} {[%emt 00:02:17]}
h6 {[%clk 01:18:06]} {[%emt 00:01:27]} 16. Nd2 {[%clk 01:11:50]} {[%emt
00:04:37]} Rad8 {[%clk 01:17:41]} {[%emt 00:00:55]} 17. Rfd1 {[%clk 01:08:15]}
{[%emt 00:04:05]} Nd4 {[%clk 01:16:14]} {[%emt 00:01:57]} 0-1

[Event "SS Manhem Chess Week 2022: Goteborg Open"]
[Site "Schackcentrum, Vegagatan 20, Gothenburg, Sweden"]
[Date "2022.08.13"]
[Round "6.2"]
[White "Nygren, Kim"]
[Black "Rasti, Arvin"]
[Result "1/2-1/2"]
[TimeControl "15 minutes + 5 seconds per move from move one (Round 1 - 4) / 90 minutes + 30 seconds per move from move one (Round 5 - 8)"]
[WhiteTitle "CM"]
[WhiteFideId "1706136"]
[BlackFideId "1741160"]
[WhiteElo "2229"]
[BlackElo "2156"]

1. d4 {[%clk 01:30:57]} {[%emt 00:00:02]} Nf6 {[%clk 01:30:34]} {[%emt
00:00:26]} 2. Bf4 {[%clk 01:31:23]} {[%emt 00:00:05]} g6 {[%clk 01:29:13]}
{[%emt 00:01:52]} 3. e3 {[%clk 01:31:33]} {[%emt 00:00:19]} Bg7 {[%clk
01:29:26]} {[%emt 00:00:16]} 4. Nf3 {[%clk 01:31:55]} {[%emt 00:00:09]} O-O
{[%clk 01:29:22]} {[%emt 00:00:33]} 5. Be2 {[%clk 01:32:19]} {[%emt 00:00:07]}
d6 {[%clk 01:28:40]} {[%emt 00:01:11]} 6. O-O {[%clk 01:32:28]} {[%emt
00:00:21]} Nbd7 {[%clk 01:27:41]} {[%emt 00:01:29]} 7. c4 {[%clk 01:32:20]}
{[%emt 00:00:39]} Qe8 {[%clk 01:25:31]} {[%emt 00:02:39]} 8. Nc3 {[%clk
01:32:22]} {[%emt 00:00:27]} e5 {[%clk 01:23:25]} {[%emt 00:02:36]} 9. Bg3
{[%clk 01:32:25]} {[%emt 00:00:27]} Qe7 {[%clk 01:17:30]} {[%emt 00:06:24]} 10.
Rc1 {[%clk 01:31:42]} {[%emt 00:01:13]} c6 {[%clk 01:16:29]} {[%emt 00:01:32]}
11. b4 {[%clk 01:29:07]} {[%emt 00:03:05]} Nh5 {[%clk 01:12:57]} {[%emt
00:04:01]} 12. d5 {[%clk 01:22:31]} {[%emt 00:07:07]} Nxg3 {[%clk 01:12:02]}
{[%emt 00:01:25]} 13. hxg3 {[%clk 01:22:52]} {[%emt 00:00:09]} c5 {[%clk
01:09:36]} {[%emt 00:02:56]} 14. Qa4 {[%clk 01:17:58]} {[%emt 00:05:24]} cxb4
{[%clk 01:05:52]} {[%emt 00:04:15]} 15. Qxb4 {[%clk 01:18:18]} {[%emt
00:00:09]} Nc5 {[%clk 01:05:47]} {[%emt 00:00:35]} 16. Nd2 {[%clk 01:17:11]}
{[%emt 00:01:37]} Bd7 {[%clk 01:02:18]} {[%emt 00:03:58]} 17. Nb3 {[%clk
01:11:33]} {[%emt 00:06:08]} b6 {[%clk 01:01:48]} {[%emt 00:01:00]} 18. Nxc5
{[%clk 01:04:58]} {[%emt 00:07:06]} bxc5 {[%clk 01:02:04]} {[%emt 00:00:14]} 19.
Qa5 {[%clk 01:04:30]} {[%emt 00:00:59]} f5 {[%clk 00:57:43]} {[%emt 00:04:50]}
20. Rfe1 {[%clk 00:58:30]} {[%emt 00:06:30]} Rae8 {[%clk 00:49:23]} {[%emt
00:08:50]} 21. Bd1 {[%clk 00:44:06]} {[%emt 00:14:54]} Rf7 {[%clk 00:42:39]}
{[%emt 00:07:13]} 22. Qxa7 {[%clk 00:41:43]} {[%emt 00:02:54]} Qf8 {[%clk
00:42:41]} 1/2-1/2

[Event "SS Manhem Chess Week 2022: Goteborg Open"]
[Site "Schackcentrum, Vegagatan 20, Gothenburg, Sweden"]
[Date "2022.08.13"]
[Round "6.3"]
[White "Wahlstrom, Lennart"]
[Black "Kasib, Laith"]
[Result "0-1"]
[TimeControl "15 minutes + 5 seconds per move from move one (Round 1 - 4) / 90 minutes + 30 seconds per move from move one (Round 5 - 8)"]
[BlackTitle "FM"]
[WhiteFideId "1706829"]
[BlackFideId "4801059"]
[WhiteElo "2115"]
[BlackElo "2051"]

1. e4 {[%clk 01:30:56]} {[%emt 00:00:03]} c5 {[%clk 01:18:14]} {[%emt
00:12:36]} 2. Nf3 {[%clk 01:31:22]} {[%emt 00:00:13]} d6 {[%clk 01:18:25]}
{[%emt 00:00:19]} 3. d4 {[%clk 01:31:32]} {[%emt 00:00:21]} cxd4 {[%clk
01:18:45]} {[%emt 00:00:10]} 4. Nxd4 {[%clk 01:31:54]} {[%emt 00:00:08]} Nf6
{[%clk 01:19:07]} {[%emt 00:00:06]} 5. Nc3 {[%clk 01:32:17]} {[%emt 00:00:10]}
g6 {[%clk 01:19:02]} {[%emt 00:00:34]} 6. Be2 {[%clk 01:32:09]} {[%emt
00:00:38]} Bg7 {[%clk 01:19:12]} {[%emt 00:00:20]} 7. O-O {[%clk 01:31:22]}
{[%emt 00:01:17]} O-O {[%clk 01:19:32]} {[%emt 00:00:11]} 8. Kh1 {[%clk
01:28:50]} {[%emt 00:03:01]} Nc6 {[%clk 01:17:46]} {[%emt 00:02:16]} 9. Nb3
{[%clk 01:28:12]} {[%emt 00:01:09]} a6 {[%clk 01:15:38]} {[%emt 00:02:38]} 10.
f4 {[%clk 01:23:37]} {[%emt 00:05:04]} b5 {[%clk 01:15:31]} {[%emt 00:00:37]}
11. Bf3 {[%clk 01:20:41]} {[%emt 00:03:26]} e5 {[%clk 01:07:47]} {[%emt
00:08:14]} 12. Nd5 {[%clk 01:11:17]} {[%emt 00:09:54]} exf4 {[%clk 01:01:39]}
{[%emt 00:06:38]} 13. Bxf4 {[%clk 01:11:11]} {[%emt 00:00:36]} Ne5 {[%clk
00:43:50]} {[%emt 00:18:19]} 14. Bxe5 {[%clk 00:55:09]} {[%emt 00:16:33]} dxe5
{[%clk 00:44:13]} {[%emt 00:00:07]} 15. a4 {[%clk 00:41:40]} {[%emt 00:13:58]}
Be6 {[%clk 00:38:36]} {[%emt 00:06:07]} 16. axb5 {[%clk 00:33:10]} {[%emt
00:09:00]} Bxd5 {[%clk 00:36:01]} {[%emt 00:03:05]} 17. exd5 {[%clk 00:33:29]}
{[%emt 00:00:11]} e4 {[%clk 00:36:27]} {[%emt 00:00:04]} 18. Be2 {[%clk
00:32:17]} {[%emt 00:01:42]} axb5 {[%clk 00:35:41]} {[%emt 00:01:18]} 19. Rxa8
{[%clk 00:24:25]} {[%emt 00:08:21]} Qxa8 {[%clk 00:35:57]} {[%emt 00:00:13]} 20.
c4 {[%clk 00:17:54]} {[%emt 00:07:01]} bxc4 {[%clk 00:35:38]} {[%emt 00:00:50]}
21. Bxc4 {[%clk 00:16:21]} {[%emt 00:02:02]} Rc8 {[%clk 00:33:47]} {[%emt
00:02:21]} 22. Qe2 {[%clk 00:13:34]} {[%emt 00:03:17]} Qa4 {[%clk 00:32:01]}
{[%emt 00:02:17]} 23. Nd2 {[%clk 00:12:45]} {[%emt 00:01:19]} Qb4 {[%clk
00:24:35]} {[%emt 00:07:55]} 24. b3 {[%clk 00:10:30]} {[%emt 00:02:45]} Re8
{[%clk 00:24:19]} {[%emt 00:00:46]} 25. Qe3 {[%clk 00:04:36]} {[%emt 00:06:24]}
Qd6 {[%clk 00:22:36]} {[%emt 00:02:14]} 26. Qg3 {[%clk 00:03:08]} {[%emt
00:01:57]} Qxg3 {[%clk 00:16:37]} {[%emt 00:06:29]} 27. hxg3 {[%clk 00:03:36]}
{[%emt 00:00:02]} e3 {[%clk 00:15:07]} {[%emt 00:01:59]} 28. Nf3 {[%clk
00:03:45]} {[%emt 00:00:22]} Ne4 {[%clk 00:15:30]} {[%emt 00:00:08]} 29. Kh2
{[%clk 00:03:06]} {[%emt 00:01:09]} Nd6 {[%clk 00:13:04]} {[%emt 00:02:55]} 30.
Re1 {[%clk 00:02:47]} {[%emt 00:00:49]} Bc3 {[%clk 00:12:00]} {[%emt 00:01:34]}
31. Re2 {[%clk 00:03:14]} {[%emt 00:00:03]} Kg7 {[%clk 00:12:13]} {[%emt
00:00:16]} 32. Ne1 {[%clk 00:02:43]} {[%emt 00:01:02]} Re5 {[%clk 00:11:59]}
{[%emt 00:00:43]} 33. Nd3 {[%clk 00:02:42]} {[%emt 00:00:32]} Rh5+ {[%clk
00:12:07]} {[%emt 00:00:22]} 34. Kg1 {[%clk 00:03:11]} {[%emt 00:00:02]} Ne4
{[%clk 00:11:54]} {[%emt 00:00:43]} 35. g4 {[%clk 00:02:36]} {[%emt 00:01:05]}
Rh4 {[%clk 00:10:11]} {[%emt 00:02:13]} 36. g3 {[%clk 00:01:00]} {[%emt
00:02:06]} Nxg3 {[%clk 00:09:06]} {[%emt 00:01:34]} 37. Rxe3 {[%clk 00:01:13]}
{[%emt 00:00:18]} Bd4 {[%clk 00:09:28]} {[%emt 00:00:08]} 38. Kg2 {[%clk
00:01:37]} {[%emt 00:00:06]} Bxe3 {[%clk 00:09:13]} {[%emt 00:00:45]} 39. Kxg3
{[%clk 00:02:05]} {[%emt 00:00:02]} Rh1 {[%clk 00:08:13]} {[%emt 00:01:30]} 40.
d6 {[%clk 00:02:12]} {[%emt 00:00:23]} Bb6 {[%clk 00:08:16]} {[%emt 00:00:27]}
41. Ne5 {[%clk 00:02:04]} {[%emt 00:00:38]} Rd1 {[%clk 00:08:15]} {[%emt
00:00:30]} 42. Nxf7 {[%clk 00:01:30]} {[%emt 00:01:05]} Bc5 {[%clk 00:08:25]}
{[%emt 00:00:20]} 43. Ng5 {[%clk 00:01:14]} {[%emt 00:00:46]} Bxd6+ {[%clk
00:08:45]} {[%emt 00:00:11]} 44. Kf3 {[%clk 00:01:35]} {[%emt 00:00:09]} h5
{[%clk 00:07:29]} {[%emt 00:01:44]} 45. gxh5 {[%clk 00:01:59]} {[%emt
00:00:07]} gxh5 {[%clk 00:07:54]} {[%emt 00:00:04]} 46. Ne4 {[%clk 00:02:03]}
{[%emt 00:00:27]} Be7 {[%clk 00:07:36]} {[%emt 00:00:48]} 47. Ng3 {[%clk
00:01:57]} {[%emt 00:00:36]} h4 {[%clk 00:06:44]} {[%emt 00:01:23]} 48. Nf5+
{[%clk 00:02:17]} {[%emt 00:00:09]} Kf8 {[%clk 00:07:03]} {[%emt 00:00:11]} 49.
Nxe7 {[%clk 00:02:23]} {[%emt 00:00:25]} Kxe7 {[%clk 00:07:28]} {[%emt
00:00:05]} 50. Kg4 {[%clk 00:01:48]} {[%emt 00:01:05]} Rd4+ {[%clk 00:07:47]}
{[%emt 00:00:11]} 51. Kh3 {[%clk 00:02:12]} {[%emt 00:00:06]} Kf6 {[%clk
00:08:10]} {[%emt 00:00:07]} 52. Be2 {[%clk 00:02:09]} {[%emt 00:00:33]} Kg5
{[%clk 00:08:35]} {[%emt 00:00:05]} 53. Bc4 {[%clk 00:01:48]} {[%emt 00:00:51]}
Re4 {[%clk 00:07:52]} {[%emt 00:01:12]} 54. Bd5 {[%clk 00:01:56]} {[%emt
00:00:23]} Re3+ {[%clk 00:08:15]} {[%emt 00:00:07]} 55. Kh2 {[%clk 00:02:07]}
{[%emt 00:00:18]} Kg4 {[%clk 00:08:14]} {[%emt 00:00:31]} 56. Bc4 {[%clk
00:02:16]} {[%emt 00:00:21]} h3 {[%clk 00:06:40]} {[%emt 00:02:05]} 57. b4
{[%clk 00:01:07]} {[%emt 00:01:39]} Rc3 {[%clk 00:06:18]} {[%emt 00:00:51]} 58.
Be6+ {[%clk 00:01:14]} {[%emt 00:00:24]} Kh4 {[%clk 00:06:40]} {[%emt
00:00:06]} 0-1

[Event "SS Manhem Chess Week 2022: Goteborg Open"]
[Site "Schackcentrum, Vegagatan 20, Gothenburg, Sweden"]
[Date "2022.08.13"]
[Round "6.5"]
[White "Pettersson, Anders"]
[Black "Lindholm, Marcus"]
[Result "1-0"]
[TimeControl "15 minutes + 5 seconds per move from move one (Round 1 - 4) / 90 minutes + 30 seconds per move from move one (Round 5 - 8)"]
[WhiteFideId "1715143"]
[BlackFideId "1743473"]
[WhiteElo "2042"]
[BlackElo "1666"]

1. d4 {[%clk 01:30:23]} {[%emt 00:00:37]} d5 {[%clk 01:30:49]} {[%emt
00:00:11]} 2. c4 {[%clk 01:30:48]} {[%emt 00:00:05]} c6 {[%clk 01:31:14]}
{[%emt 00:00:06]} 3. Nc3 {[%clk 01:31:14]} {[%emt 00:00:03]} Nf6 {[%clk
01:31:35]} {[%emt 00:00:09]} 4. Nf3 {[%clk 01:31:36]} {[%emt 00:00:07]} e6
{[%clk 01:31:31]} {[%emt 00:00:35]} 5. Bg5 {[%clk 01:31:59]} {[%emt 00:00:05]}
dxc4 {[%clk 01:31:32]} {[%emt 00:00:32]} 6. e4 {[%clk 01:32:20]} {[%emt
00:00:08]} b5 {[%clk 01:31:59]} {[%emt 00:00:04]} 7. e5 {[%clk 01:32:46]}
{[%emt 00:00:04]} h6 {[%clk 01:32:20]} {[%emt 00:00:09]} 8. Bh4 {[%clk
01:33:09]} {[%emt 00:00:06]} g5 {[%clk 01:32:42]} {[%emt 00:00:09]} 9. Nxg5
{[%clk 01:33:34]} {[%emt 00:00:05]} hxg5 {[%clk 01:32:47]} {[%emt 00:00:25]} 10.
Bxg5 {[%clk 01:34:00]} {[%emt 00:00:04]} Nbd7 {[%clk 01:33:02]} {[%emt
00:00:15]} 11. g3 {[%clk 01:34:22]} {[%emt 00:00:08]} Bb7 {[%clk 01:29:27]}
{[%emt 00:04:05]} 12. Bg2 {[%clk 01:33:56]} {[%emt 00:00:54]} a6 {[%clk
01:28:53]} {[%emt 00:01:06]} 13. O-O {[%clk 01:21:35]} {[%emt 00:12:50]} Be7
{[%clk 01:28:20]} {[%emt 00:01:04]} 14. exf6 {[%clk 01:21:59]} {[%emt
00:00:06]} Bxf6 {[%clk 01:28:08]} {[%emt 00:00:42]} 15. Bf4 {[%clk 01:22:00]}
{[%emt 00:00:29]} Nb6 {[%clk 01:26:32]} {[%emt 00:02:01]} 16. Ne4 {[%clk
01:14:48]} {[%emt 00:07:46]} Be7 {[%clk 01:23:00]} {[%emt 00:04:02]} 17. Qg4
{[%clk 01:13:00]} {[%emt 00:02:18]} Kd7 {[%clk 01:19:30]} {[%emt 00:04:00]} 18.
Nc5+ {[%emt 00:05:00]} Bxc5 {[%clk 01:19:40]} {[%emt 00:00:19]} 19. dxc5 {[%clk
01:08:56]} {[%emt 00:00:05]} Nd5 {[%clk 01:20:01]} {[%emt 00:00:09]} 20. Bd6
{[%clk 01:07:35]} {[%emt 00:01:51]} Qg8 {[%clk 01:20:07]} {[%emt 00:00:24]} 21.
Qd4 {[%clk 01:05:37]} {[%emt 00:02:26]} Qh7 {[%clk 01:18:54]} {[%emt 00:01:44]}
22. h4 {[%clk 01:04:34]} {[%emt 00:01:35]} Rag8 {[%clk 01:17:29]} {[%emt
00:01:55]} 23. Be5 {[%clk 01:03:00]} {[%emt 00:02:03]} f6 {[%clk 01:14:53]}
{[%emt 00:03:07]} 24. Bxf6 {[%clk 01:03:17]} {[%emt 00:00:12]} Rg4 {[%clk
01:14:46]} {[%emt 00:00:37]} 25. Qxg4 {[%clk 01:02:34]} {[%emt 00:01:14]} Nxf6
{[%clk 01:14:58]} {[%emt 00:00:17]} 26. Rad1+ {[%clk 01:02:00]} {[%emt
00:01:03]} Nd5 {[%clk 01:14:10]} {[%emt 00:01:18]} 1-0

[Event "SS Manhem Chess Week 2022: Goteborg Open"]
[Site "Schackcentrum, Vegagatan 20, Gothenburg, Sweden"]
[Date "2022.08.13"]
[Round "6.6"]
[White "Westlund, Tim"]
[Black "Johansson, William"]
[Result "1/2-1/2"]
[TimeControl "15 minutes + 5 seconds per move from move one (Round 1 - 4) / 90 minutes + 30 seconds per move from move one (Round 5 - 8)"]
[WhiteFideId "1754718"]
[BlackFideId "1744070"]
[WhiteElo "1760"]
[BlackElo "2015"]

1. e4 {[%clk 01:30:57]} {[%emt 00:00:01]} d6 {[%clk 01:30:37]} {[%emt
00:00:25]} 2. d4 {[%clk 01:30:53]} {[%emt 00:00:33]} Nf6 {[%clk 01:31:01]}
{[%emt 00:00:06]} 3. Nc3 {[%clk 01:30:24]} {[%emt 00:00:58]} Nbd7 {[%clk
01:31:23]} {[%emt 00:00:09]} 4. Nf3 {[%clk 01:29:52]} {[%emt 00:01:01]} e5
{[%clk 01:31:44]} {[%emt 00:00:10]} 5. Bc4 {[%clk 01:29:33]} {[%emt 00:00:50]}
Be7 {[%clk 01:32:05]} {[%emt 00:00:09]} 6. O-O {[%clk 01:28:59]} {[%emt
00:01:03]} c6 {[%clk 01:32:04]} {[%emt 00:00:31]} 7. a3 {[%clk 01:28:35]}
{[%emt 00:00:54]} Qc7 {[%clk 01:31:52]} {[%emt 00:00:43]} 8. Be3 {[%clk
01:22:25]} {[%emt 00:06:39]} O-O {[%clk 01:28:27]} {[%emt 00:03:56]} 9. h3
{[%clk 01:21:21]} {[%emt 00:01:33]} b5 {[%clk 01:26:49]} {[%emt 00:02:09]} 10.
Ba2 {[%clk 01:21:40]} {[%emt 00:00:11]} a6 {[%clk 01:26:32]} {[%emt 00:00:47]}
11. dxe5 {[%clk 01:19:48]} {[%emt 00:02:22]} dxe5 {[%clk 01:26:24]} {[%emt
00:00:38]} 12. Qe2 {[%clk 01:19:27]} {[%emt 00:00:49]} Nc5 {[%clk 01:25:01]}
{[%emt 00:01:54]} 13. Nd2 {[%clk 01:19:06]} {[%emt 00:00:51]} Be6 {[%clk
01:18:51]} {[%emt 00:06:40]} 14. Bxe6 {[%clk 01:15:21]} {[%emt 00:04:16]} Nxe6
{[%clk 01:19:03]} {[%emt 00:00:17]} 15. Nf3 {[%clk 01:14:58]} {[%emt 00:00:51]}
c5 {[%clk 01:15:43]} {[%emt 00:03:53]} 16. Rad1 {[%clk 01:10:34]} {[%emt
00:04:53]} Nd4 {[%clk 01:11:31]} {[%emt 00:04:43]} 17. Bxd4 {[%clk 01:05:13]}
{[%emt 00:05:50]} cxd4 {[%clk 01:07:30]} {[%emt 00:04:31]} 18. Na2 {[%clk
01:04:19]} {[%emt 00:01:22]} Rac8 {[%clk 01:07:18]} {[%emt 00:00:44]} 19. c3
{[%clk 01:03:24]} {[%emt 00:01:25]} dxc3 {[%clk 00:59:05]} {[%emt 00:08:43]} 20.
Nxc3 {[%clk 01:03:33]} {[%emt 00:00:21]} Bxa3 {[%clk 00:57:26]} {[%emt
00:02:09]} 21. Nxb5 {[%clk 01:00:35]} {[%emt 00:03:28]} axb5 {[%clk 00:56:55]}
{[%emt 00:01:01]} 22. bxa3 {[%clk 01:00:51]} {[%emt 00:00:13]} Qb7 {[%clk
00:48:53]} {[%emt 00:08:34]} 23. Nxe5 {[%clk 00:55:50]} {[%emt 00:05:27]} Rfe8
{[%clk 00:48:02]} {[%emt 00:01:25]} 24. Qb2 {[%clk 00:53:13]} {[%emt 00:03:01]}
Qxe4 {[%clk 00:45:07]} {[%emt 00:03:31]} 25. Rfe1 {[%clk 00:51:30]} {[%emt
00:02:11]} Qf5 {[%clk 00:44:49]} {[%emt 00:00:50]} 26. Nf3 {[%clk 00:45:23]}
{[%emt 00:06:25]} Ne4 {[%clk 00:35:19]} {[%emt 00:10:13]} 27. Qd4 {[%clk
00:39:50]} {[%emt 00:05:57]} h6 {[%clk 00:27:24]} {[%emt 00:08:31]} 28. Nh4
{[%clk 00:34:46]} {[%emt 00:05:32]} Qg5 {[%clk 00:25:10]} {[%emt 00:02:44]} 29.
Rxe4 {[%clk 00:33:42]} {[%emt 00:01:35]} Red8 {[%clk 00:25:25]} {[%emt
00:00:16]} 30. Nf3 {[%clk 00:29:56]} {[%emt 00:04:14]} Rxd4 {[%clk 00:25:38]}
{[%emt 00:00:20]} 31. Rexd4 {[%clk 00:29:50]} {[%emt 00:00:36]} Qf6 {[%clk
00:25:18]} {[%emt 00:00:50]} 32. a4 {[%clk 00:28:46]} {[%emt 00:01:34]} bxa4
{[%clk 00:22:20]} {[%emt 00:03:28]} 33. Rxa4 {[%clk 00:28:54]} {[%emt
00:00:23]} Rc3 {[%clk 00:22:37]} {[%emt 00:00:12]} 34. Rad4 {[%clk 00:27:24]}
{[%emt 00:01:58]} Qg6 {[%clk 00:20:30]} {[%emt 00:02:38]} 35. Kh2 {[%clk
00:26:47]} {[%emt 00:01:07]} Rc2 {[%clk 00:19:58]} {[%emt 00:01:03]} 36. R4d2
{[%clk 00:24:44]} {[%emt 00:02:34]} Rc3 {[%clk 00:20:19]} {[%emt 00:00:08]} 37.
Rd4 {[%clk 00:25:06]} {[%emt 00:00:08]} Qc2 {[%clk 00:19:10]} {[%emt 00:01:38]}
38. R4d2 {[%clk 00:23:44]} {[%emt 00:01:52]} Qf5 {[%clk 00:18:53]} {[%emt
00:00:48]} 39. Nd4 {[%clk 00:20:38]} {[%emt 00:03:35]} Qf4+ {[%clk 00:17:13]}
{[%emt 00:02:12]} 40. Kg1 {[%clk 00:20:37]} {[%emt 00:00:31]} Rc1 {[%clk
00:14:20]} {[%emt 00:03:23]} 41. Rxc1 {[%clk 00:19:48]} {[%emt 00:01:19]} Qxd2
{[%clk 00:14:37]} {[%emt 00:00:13]} 42. Rc8+ {[%clk 00:20:09]} {[%emt
00:00:08]} Kh7 {[%clk 00:15:01]} {[%emt 00:00:06]} 43. Nf3 {[%clk 00:20:25]}
{[%emt 00:00:09]} Qd1+ {[%clk 00:15:12]} {[%emt 00:00:25]} 44. Kh2 {[%clk
00:20:39]} {[%emt 00:00:14]} Qe2 {[%clk 00:15:08]} {[%emt 00:00:36]} 45. Kg1
{[%clk 00:20:49]} {[%emt 00:00:17]} Qd1+ {[%clk 00:15:13]} {[%emt 00:00:28]} 46.
Kh2 {[%clk 00:21:05]} {[%emt 00:00:14]} Qf1 {[%clk 00:15:37]} {[%emt 00:00:07]}
47. Rc7 {[%clk 00:18:41]} {[%emt 00:02:54]} f5 {[%clk 00:13:51]} {[%emt
00:02:16]} 48. Rc5 {[%clk 00:17:44]} {[%emt 00:01:27]} Qd3 {[%clk 00:13:46]}
{[%emt 00:00:34]} 49. Re5 {[%clk 00:17:07]} {[%emt 00:01:08]} g6 {[%clk
00:10:06]} {[%emt 00:04:10]} 50. Re7+ {[%clk 00:16:57]} {[%emt 00:00:39]} Kg8
{[%clk 00:10:09]} {[%emt 00:00:26]} 51. Re6 {[%clk 00:16:41]} {[%emt 00:00:48]}
Kh7 {[%clk 00:06:37]} {[%emt 00:04:01]} 52. Rxg6 {[%clk 00:16:09]} {[%emt
00:01:03]} Qc2 {[%clk 00:05:00]} {[%emt 00:02:06]} 53. Re6 {[%clk 00:15:56]}
{[%emt 00:00:40]} Qxf2 {[%clk 00:04:52]} {[%emt 00:00:42]} 54. Re5 {[%clk
00:15:06]} {[%emt 00:01:18]} Kg6 {[%clk 00:04:54]} {[%emt 00:00:29]} 55. Re6+
{[%clk 00:15:03]} {[%emt 00:00:34]} Kg7 {[%clk 00:04:57]} {[%emt 00:00:26]} 56.
Re5 {[%clk 00:14:54]} {[%emt 00:00:39]} Kf6 {[%clk 00:05:06]} {[%emt 00:00:22]}
57. Rd5 {[%clk 00:14:22]} {[%emt 00:00:54]} Ke6 {[%clk 00:05:08]} {[%emt
00:00:35]} 58. Re5+ {[%clk 00:14:14]} {[%emt 00:00:39]} Kf6 {[%clk 00:05:28]}
{[%emt 00:00:10]} 59. Rd5 {[%clk 00:14:37]} {[%emt 00:00:07]} Qb6 {[%clk
00:04:41]} {[%emt 00:01:16]} 60. Rd2 {[%clk 00:14:19]} {[%emt 00:00:42]} Qc7+
{[%clk 00:04:56]} {[%emt 00:00:22]} 61. Kg1 {[%clk 00:14:35]} {[%emt 00:00:12]}
Qg3 {[%clk 00:05:07]} {[%emt 00:00:19]} 62. Re2 {[%clk 00:14:10]} {[%emt
00:00:54]} f4 {[%emt 00:01:31]} 63. Re8 {[%clk 00:13:02]} {[%emt 00:00:42]} Qg7
{[%clk 00:05:16]} {[%emt 00:00:18]} 64. Re5 {[%clk 00:12:41]} {[%emt 00:00:48]}
Qa7+ {[%clk 00:05:35]} {[%emt 00:00:15]} 65. Kh2 {[%clk 00:12:41]} {[%emt
00:00:29]} Qf2 {[%clk 00:05:55]} {[%emt 00:00:11]} 66. Re8 {[%clk 00:12:32]}
{[%emt 00:00:35]} Qg3+ {[%clk 00:06:20]} {[%emt 00:00:09]} 67. Kg1 {[%clk
00:12:22]} {[%emt 00:00:40]} Kf5 {[%clk 00:06:14]} {[%emt 00:00:32]} 68. Re5+
{[%clk 00:12:32]} {[%emt 00:00:24]} Kf6 {[%clk 00:06:37]} {[%emt 00:00:07]}
1/2-1/2